[Event "2019 National Open"]
[Site "Las Vegas"]
[Date "2019.06.13"]
[Round "1"]
[White "Antal, Gergely"]
[Black "Lynch, Joshua"]
[Result "1-0"]
[ECO "B31"]
[WhiteElo "2559"]
[BlackElo "2195"]
[PlyCount "67"]
[EventDate "2019.??.??"]
[TimeControl "5400+30"]
[WhiteClock "0:01:48"]
[BlackClock "0:20:45"]

1. e4 {[%emt 0:00:00]} c5 {[%emt 0:00:02]} 2. Nf3 {[%emt 0:00:05]} Nc6 {[%emt 0:00:03]} 3. Bb5 {[%emt 0:00:07]} g6 {[%emt 0:00:04]} 4. Bxc6 {[%emt 0:00:14]} bxc6 {[%emt 0:00:03]} 5. d4 {[%emt 0:00:21]} Bg7 {[%emt 0:00:04]} 6. dxc5 {[%emt 0:00:44]} Qa5+ {[%emt 0:00:05]} 7. Nbd2 {[%emt 0:00:35]} Qxc5 {[%emt 0:00:10]} 8. O-O {[%emt 0:03:35]} d6 {[%emt 0:00:10]} 9. Rb1 {[%emt 0:06:02]} Nf6 {[%emt 0:09:03]} 10. b4 {[%emt 0:02:03]} Qb6 {[%emt 0:04:55]} 11. Bb2 {[%emt 0:04:29]} O-O {[%emt 0:03:24]} 12. c4 {[%emt 0:06:33]} Rd8 {[%emt 0:18:43]} 13. a4 {[%emt 0:05:45]} Bg4 {[%emt 0:18:10]} 14. Qc2 {[%emt 0:11:32]} d5 {[%emt 0:16:24]} 15. Bd4 {[%emt 0:10:25]} Qb7 {[%emt 0:02:33]} 16. cxd5 {[%emt 0:00:14]} cxd5 {[%emt 0:01:20]} 17. e5 {[%emt 0:00:15]} Rac8 {[%emt 0:06:11]} 18. Qb2 {[%emt 0:00:33]} Ne4 {[%emt 0:01:52]} 19. b5 {[%emt 0:04:59]} Bf5 {[%emt 0:06:25]} 20. Nb3 {[%emt 0:01:25]} Bg4 {[%emt 0:04:50]} 21. Nfd2 {[%emt 0:02:06]} Nxd2 {[%emt 0:01:05]} 22. Qxd2 {[%emt 0:00:10]} Bf5 {[%emt 0:00:49]} 23. Rbc1 {[%emt 0:00:27]} Qb8 {[%emt 0:01:43]} 24. Na5 {[%emt 0:05:47]} Bd7 {[%emt 0:03:02]} 25. Qe3 {[%emt 0:01:52]} a6 {[%emt 0:00:47]} 26. bxa6 {[%emt 0:06:08]} Bxa4 {[%emt 0:00:00]} 27. Rb1 {[%emt 0:04:28]} Qa8 {[%emt 0:00:00]} 28. a7 {[%emt 0:00:08]} Rd7 {[%emt 0:01:29]} 29. Rfc1 {[%emt 0:01:44]} Rdd8 {[%emt 0:00:00]} 30. Rxc8 {[%emt 0:01:46]} Rxc8 {[%emt 0:00:00]} 31. Qa3 {[%emt 0:00:34]} Bc2 {[%emt 0:00:00]} 32. Rb7 {[%emt 0:00:24]} Bd3 {[%emt 0:01:06]} 33. Qxd3 {[%emt 0:00:41]} Rc1+ {[%emt 0:00:10]} 34. Qf1 {[%emt 0:00:04]} 1-0

[Event "2019 National Open"]
[Site "Las Vegas"]
[Date "2019.06.13"]
[Round "1"]
[White "Tang, Andrew"]
[Black "Burrows, Brandon"]
[Result "1-0"]
[ECO "E33"]
[WhiteElo "2496"]
[BlackElo "2127"]
[PlyCount "145"]
[EventDate "2019.??.??"]
[TimeControl "5400+30"]
[WhiteClock "0:10:10"]
[BlackClock "0:25:59"]

1. d4 {[%emt 0:00:00]} Nf6 {[%emt 0:00:01]} 2. c4 {[%emt 0:00:43]} e6 {[%emt 0:03:21]} 3. Nc3 {[%emt 0:00:01]} Bb4 {[%emt 0:01:38]} 4. Qc2 {[%emt 0:00:01]} Nc6 {[%emt 0:04:18]} 5. Nf3 {[%emt 0:00:01]} d6 {[%emt 0:00:01]} 6. Bd2 {[%emt 0:00:01]} O-O {[%emt 0:07:36]} 7. a3 {[%emt 0:00:01]} Bxc3 {[%emt 0:00:00]} 8. Bxc3 {[%emt 0:00:00]} Qe7 {[%emt 0:11:19]} 9. e3 {[%emt 0:00:00]} e5 {[%emt 0:24:47]} 10. d5 {[%emt 0:00:01]} Nb8 {[%emt 0:00:10]} 11. Bd3 {[%emt 0:00:01]} Nbd7 {[%emt 0:00:01]} 12. Nd2 {[%emt 0:00:01]} Nc5 {[%emt 0:11:18]} 13. Be2 {[%emt 0:00:01]} Bd7 {[%emt 0:08:56]} 14. b3 {[%emt 0:00:01]} b5 {[%emt 0:18:09]} 15. cxb5 {[%emt 0:00:00]} Nxd5 {[%emt 0:00:01]} 16. Bb2 {[%emt 0:00:01]} Rab8 {[%emt 0:00:00]} 17. b4 {[%emt 0:00:00]} Ne6 {[%emt 0:00:00]} 18. Bf3 {[%emt 0:00:01]} Rxb5 {[%emt 0:00:00]} 19. O-O {[%emt 0:00:01]} Nf6 {[%emt 0:00:00]} 20. Rfd1 {[%emt 0:00:01]} Rc8 {[%emt 0:00:26]} 21. Nc4 {[%emt 0:00:01]} Rbb8 {[%emt 0:00:51]} 22. Na5 {[%emt 0:11:13]} c5 {[%emt 0:00:00]} 23. Qd2 {[%emt 0:00:00]} cxb4 {[%emt 0:00:00]} 24. axb4 {[%emt 0:00:00]} Rb6 {[%emt 0:00:00]} 25. Rac1 {[%emt 0:18:08]} Ng5 {[%emt 0:00:01]} 26. Rxc8+ {[%emt 0:00:01]} Bxc8 {[%emt 0:00:00]} 27. Be2 {[%emt 0:00:01]} Ba6 {[%emt 0:00:02]} 28. Bxa6 {[%emt 0:00:04]} Rxa6 {[%emt 0:00:00]} 29. Nc4 {[%emt 0:19:41]} Nge4 {[%emt 0:00:01]} 30. Qd3 {[%emt 0:00:09]} Rc6 {[%emt 0:00:01]} 31. f3 {[%emt 0:00:07]} Qc7 {[%emt 0:00:00]} 32. Na5 {[%emt 0:04:35]} Rc2 {[%emt 0:00:00]} 33. Bxe5 {[%emt 0:00:00]} Nf2 {[%emt 0:00:00]} 34. Qxd6 {[%emt 0:00:00]} Nxd1 {[%emt 0:00:30]} 35. Qxc7 {[%emt 0:00:00]} Rxc7 {[%emt 0:07:29]} 36. Bxc7 {[%emt 0:00:00]} Nd5 {[%emt 0:00:00]} 37. Bd6 {[%emt 0:00:00]} N1xe3 {[%emt 0:00:01]} 38. Bc5 {[%emt 0:00:00]} a6 {[%emt 0:02:47]} 39. Kf2 {[%emt 0:00:02]} Nc2 {[%emt 0:00:01]} 40. Nc6 {[%emt 0:00:00]} f6 {[%emt 0:04:35]} 41. Ke2 {[%emt 0:00:02]} Nf4+ {[%emt 0:00:00]} 42. Kd2 {[%emt 0:03:19]} Na3 {[%emt 0:00:00]} 43. g3 {[%emt 0:07:27]} Ne6 {[%emt 0:00:00]} 44. Kc3 {[%emt 0:13:55]} h5 {[%emt 0:00:00]} 45. Nb8 {[%emt 0:01:46]} Nb5+ {[%emt 0:00:00]} 46. Kc4 {[%emt 0:00:00]} Nbc7 {[%emt 0:00:00]} 47. Bd6 {[%emt 0:03:20]} Nb5 {[%emt 0:00:00]} 48. Nxa6 {[%emt 0:11:39]} Na3+ {[%emt 0:00:00]} 49. Kd5 {[%emt 0:00:02]} Ng5 {[%emt 0:00:00]} 50. f4 {[%emt 0:03:53]} Nf3 {[%emt 0:00:00]} 51. h3 {[%emt 0:00:00]} h4 {[%emt 0:00:00]} 52. gxh4 {[%emt 0:00:00]} Nxh4 {[%emt 0:00:07]} 53. Nc7 {[%emt 0:00:01]} g5 {[%emt 0:02:35]} 54. b5 {[%emt 0:00:00]} Nxb5 {[%emt 0:00:01]} 55. Nxb5 {[%emt 0:00:00]} Kf7 {[%emt 0:05:48]} 56. Ke4 {[%emt 0:00:00]} Kg6 {[%emt 0:00:00]} 57. Nd4 {[%emt 0:00:01]} f5+ {[%emt 0:00:00]} 58. Ke3 {[%emt 0:00:00]} gxf4+ {[%emt 0:00:01]} 59. Kxf4 {[%emt 0:00:00]} Ng2+ {[%emt 0:00:38]} 60. Kf3 {[%emt 0:00:00]} Nh4+ {[%emt 0:00:00]} 61. Kg3 {[%emt 0:00:01]} Kh5 {[%emt 0:00:00]} 62. Ne6 {[%emt 0:00:03]} Ng6 {[%emt 0:00:00]} 63. Nf4+ {[%emt 0:00:00]} Nxf4 {[%emt 0:00:00]} 64. Bxf4 {[%emt 0:00:00]} Kg6 {[%emt 0:00:00]} 65. Kh4 {[%emt 0:00:00]} Kh7 {[%emt 0:00:00]} 66. Kg5 {[%emt 0:00:00]} Kh8 {[%emt 0:00:00]} 67. Kg6 {[%emt 0:00:00]} Kg8 {[%emt 0:00:00]} 68. h4 {[%emt 0:00:00]} Kh8 {[%emt 0:00:00]} 69. h5 {[%emt 0:00:00]} Kg8 {[%emt 0:00:00]} 70. h6 {[%emt 0:00:00]} Kh8 {[%emt 0:00:00]} 71. Bd6 {[%emt 0:00:00]} Kg8 {[%emt 0:00:00]} 72. h7+ {[%emt 0:00:02]} Kh8 {[%emt 0:00:00]} 73. Be5# {[%emt 0:00:01]} 1-0

[Event "2019 National Open"]
[Site "Las Vegas"]
[Date "2019.06.13"]
[Round "1"]
[White "Prasanna Raghuram Rao"]
[Black "Lee, Megan"]
[Result "1-0"]
[ECO "C77"]
[WhiteElo "2448"]
[BlackElo "2115"]
[PlyCount "95"]
[EventDate "2019.??.??"]
[TimeControl "5400+30"]
[WhiteClock "0:04:27"]
[BlackClock "1:33:58"]

1. e4 {[%emt 0:00:00]} e5 {[%emt 0:00:01]} 2. Nf3 {[%emt 0:01:32]} Nc6 {[%emt 0:00:01]} 3. Bb5 {[%emt 0:00:01]} a6 {[%emt 0:00:00]} 4. Ba4 {[%emt 0:00:00]} Nf6 {[%emt 0:00:01]} 5. d3 {[%emt 0:00:00]} Bc5 {[%emt 0:02:18]} 6. O-O {[%emt 0:00:02]} b5 {[%emt 0:02:54]} 7. Bb3 {[%emt 0:00:01]} d6 {[%emt 0:01:19]} 8. a4 {[%emt 0:01:37]} Rb8 {[%emt 0:20:21]} 9. c3 {[%emt 0:00:27]} Bd7 {[%emt 0:11:33]} 10. h3 {[%emt 0:03:48]} Bb6 {[%emt 0:02:20]} 11. Re1 {[%emt 0:00:01]} Ne7 {[%emt 0:05:47]} 12. Nbd2 {[%emt 0:00:01]} c5 {[%emt 0:04:03]} 13. Nf1 {[%emt 0:00:01]} h6 {[%emt 0:02:16]} 14. Ng3 {[%emt 0:00:01]} Ng6 {[%emt 0:04:45]} 15. d4 {[%emt 0:00:00]} O-O {[%emt 0:14:42]} 16. axb5 {[%emt 0:00:56]} axb5 {[%emt 0:01:07]} 17. Be3 {[%emt 0:06:47]} Re8 {[%emt 0:19:40]} 18. Bc2 {[%emt 0:00:01]} Bc6 {[%emt 0:00:04]} 19. dxe5 {[%emt 0:00:01]} dxe5 {[%emt 0:04:22]} 20. Qxd8 {[%emt 0:00:04]} Rexd8 {[%emt 0:00:01]} 21. Ra6 {[%emt 0:00:16]} Nd7 {[%emt 0:00:00]} 22. Nf5 {[%emt 0:00:01]} Bb7 {[%emt 0:01:20]} 23. Raa1 {[%emt 0:00:01]} Nf6 {[%emt 0:00:00]} 24. Nd2 {[%emt 0:03:56]} Bc8 {[%emt 0:00:00]} 25. Nf1 {[%emt 0:00:01]} Kf8 {[%emt 0:00:00]} 26. Ra2 {[%emt 0:00:02]} Ne7 {[%emt 0:00:00]} 27. Nxe7 {[%emt 0:00:00]} Kxe7 {[%emt 0:00:00]} 28. Ng3 {[%emt 0:00:01]} Ne8 {[%emt 0:03:44]} 29. Nf5+ {[%emt 0:00:01]} Kf8 {[%emt 0:00:03]} 30. Raa1 {[%emt 0:00:01]} Nd6 {[%emt 0:00:00]} 31. Red1 {[%emt 0:00:01]} Nxf5 {[%emt 0:00:00]} 32. Rxd8+ {[%emt 0:00:01]} Bxd8 {[%emt 0:00:00]} 33. exf5 {[%emt 0:00:01]} Bb6 {[%emt 0:00:00]} 34. Rd1 {[%emt 0:00:02]} Bb7 {[%emt 0:00:00]} 35. Rd6 {[%emt 0:00:01]} Ba7 {[%emt 0:00:00]} 36. f6 {[%emt 0:00:00]} gxf6 {[%emt 0:00:00]} 37. Rxf6 {[%emt 0:00:01]} Ke7 {[%emt 0:00:00]} 38. Rxh6 {[%emt 0:00:00]} Rg8 {[%emt 0:00:00]} 39. g4 {[%emt 0:00:01]} Bc8 {[%emt 0:00:00]} 40. Rc6 {[%emt 0:00:01]} Kd7 {[%emt 0:00:00]} 41. Rh6 {[%emt 0:00:01]} Ke7 {[%emt 0:00:00]} 42. Kf1 {[%emt 0:00:04]} Be6 {[%emt 0:00:38]} 43. Bf5 {[%emt 0:00:01]} Bc4+ {[%emt 0:00:00]} 44. Ke1 {[%emt 0:00:01]} f6 {[%emt 0:00:00]} 45. h4 {[%emt 0:00:02]} Rf8 {[%emt 0:05:43]} 46. g5 {[%emt 0:00:00]} Bd5 {[%emt 0:00:00]} 47. gxf6+ {[%emt 0:00:02]} Kf7 {[%emt 0:00:00]} 48. Bg5 {[%emt 0:00:01]} 1-0

[Event "2019 National Open"]
[Site "Las Vegas"]
[Date "2019.06.13"]
[Round "1"]
[White "Katz, Alexander"]
[Black "Serna, Jeffrey"]
[Result "1-0"]
[ECO "C53"]
[WhiteElo "2427"]
[BlackElo "2052"]
[PlyCount "39"]
[EventDate "2019.??.??"]
[TimeControl "5400+30"]
[WhiteClock "0:33:10"]
[BlackClock "1:11:44"]

1. e4 {[%emt 0:00:00]} e5 {[%emt 0:00:03]} 2. Nf3 {[%emt 0:00:04]} Nc6 {[%emt 0:00:03]} 3. Bc4 {[%emt 0:00:13]} Bc5 {[%emt 0:00:16]} 4. c3 {[%emt 0:00:14]} Nf6 {[%emt 0:04:02]} 5. d3 {[%emt 0:00:03]} O-O {[%emt 0:02:27]} 6. O-O {[%emt 0:00:07]} d5 {[%emt 0:03:19]} 7. exd5 {[%emt 0:00:04]} Nxd5 {[%emt 0:00:04]} 8. Nbd2 {[%emt 0:00:24]} h6 {[%emt 0:07:52]} 9. Re1 {[%emt 0:01:49]} f6 {[%emt 0:05:38]} 10. d4 {[%emt 0:01:55]} exd4 {[%emt 0:03:05]} 11. Qb3 {[%emt 0:01:50]} Nce7 {[%emt 0:00:19]} 12. cxd4 {[%emt 0:01:34]} Bb6 {[%emt 0:00:16]} 13. Rxe7 {[%emt 0:00:10]} Qxe7 {[%emt 0:00:00]} 14. Bxd5+ {[%emt 0:00:04]} Kh8 {[%emt 0:00:00]} 15. Nh4 {[%emt 0:01:37]} Kh7 {[%emt 0:02:29]} 16. Nf1 {[%emt 0:13:07]} g6 {[%emt 0:18:38]} 17. Bd2 {[%emt 0:01:30]} Rd8 {[%emt 0:04:52]} 18. Re1 {[%emt 0:00:39]} Qg7 {[%emt 0:03:06]} 19. Bb4 {[%emt 0:01:34]} Rd7 {[%emt 0:09:51]} 20. Re8 {[%emt 0:01:18]} 1-0

[Event "2019 National Open"]
[Site "Las Vegas"]
[Date "2019.06.12"]
[Round "1"]
[White "Kavutskiy, Konstantin"]
[Black "Akopian, Robert"]
[Result "1-0"]
[ECO "A65"]
[WhiteElo "2417"]
[BlackElo "2040"]
[PlyCount "79"]
[EventDate "2019.??.??"]
[TimeControl "5400+30"]
[WhiteClock "0:22:48"]
[BlackClock "0:23:57"]

1. d4 {[%emt 0:00:00]} Nf6 {[%emt 0:00:12]} 2. c4 {[%emt 0:00:06]} c5 {[%emt 0:00:06]} 3. d5 {[%emt 0:00:07]} e6 {[%emt 0:00:05]} 4. Nc3 {[%emt 0:00:07]} exd5 {[%emt 0:00:02]} 5. cxd5 {[%emt 0:00:06]} d6 {[%emt 0:00:05]} 6. e4 {[%emt 0:00:06]} g6 {[%emt 0:00:07]} 7. Nge2 {[%emt 0:00:09]} Bg7 {[%emt 0:00:27]} 8. Ng3 {[%emt 0:00:08]} a6 {[%emt 0:00:53]} 9. a4 {[%emt 0:00:08]} h5 {[%emt 0:00:12]} 10. Be2 {[%emt 0:00:41]} h4 {[%emt 0:01:18]} 11. Nf1 {[%emt 0:00:06]} h3 {[%emt 0:00:17]} 12. g3 {[%emt 0:00:35]} Nbd7 {[%emt 0:04:12]} 13. Bg5 {[%emt 0:06:33]} Qc7 {[%emt 0:04:54]} 14. Nd2 {[%emt 0:03:47]} Ne5 {[%emt 0:02:47]} 15. O-O {[%emt 0:09:37]} c4 {[%emt 0:05:28]} 16. Kh1 {[%emt 0:05:10]} O-O {[%emt 0:08:37]} 17. a5 {[%emt 0:15:50]} Bg4 {[%emt 0:13:29]} 18. f3 {[%emt 0:01:06]} Bd7 {[%emt 0:00:30]} 19. Be3 {[%emt 0:01:24]} Rfe8 {[%emt 0:01:22]} 20. Bb6 {[%emt 0:02:03]} Qc8 {[%emt 0:01:13]} 21. Rc1 {[%emt 0:02:37]} g5 {[%emt 0:15:30]} 22. b3 {[%emt 0:04:03]} g4 {[%emt 0:00:30]} 23. f4 {[%emt 0:02:01]} Nf3 {[%emt 0:01:42]} 24. Nxc4 {[%emt 0:05:00]} Qb8 {[%emt 0:04:16]} 25. Bxf3 {[%emt 0:02:01]} gxf3 {[%emt 0:00:47]} 26. Qxf3 {[%emt 0:00:20]} Bg4 {[%emt 0:01:17]} 27. Qd3 {[%emt 0:00:36]} Nd7 {[%emt 0:00:55]} 28. Bd4 {[%emt 0:03:47]} Nc5 {[%emt 0:01:25]} 29. Bxc5 {[%emt 0:00:16]} dxc5 {[%emt 0:00:08]} 30. Nb6 {[%emt 0:01:28]} Ra7 {[%emt 0:02:30]} 31. e5 {[%emt 0:01:54]} Qd8 {[%emt 0:03:57]} 32. d6 {[%emt 0:02:37]} Ra8 {[%emt 0:02:12]} 33. Rce1 {[%emt 0:04:22]} Re6 {[%emt 0:02:47]} 34. Ncd5 {[%emt 0:01:28]} Rb8 {[%emt 0:00:17]} 35. f5 {[%emt 0:02:05]} Rxe5 {[%emt 0:00:26]} 36. Rxe5 {[%emt 0:00:22]} Bxe5 {[%emt 0:00:04]} 37. Qe4 {[%emt 0:00:40]} Qg5 {[%emt 0:00:30]} 38. Qxe5 {[%emt 0:02:17]} Qd2 {[%emt 0:00:41]} 39. Nf6+ {[%emt 0:00:12]} Kf8 {[%emt 0:00:32]} 40. Nbd7+ {[%emt 0:00:08]} 1-0

[Event "2019 National Open"]
[Site "Las Vegas"]
[Date "2019.06.12"]
[Round "1"]
[White "Ghatti, Sanjay"]
[Black "Vorontsov, Pavlo"]
[Result "0-1"]
[ECO "B06"]
[WhiteElo "2190"]
[BlackElo "2553"]
[PlyCount "128"]
[EventDate "2019.??.??"]
[TimeControl "5400+30"]
[WhiteClock "0:10:54"]
[BlackClock "0:14:10"]

1. e4 {[%emt 0:00:00]} g6 {[%emt 0:00:47]} 2. d4 {[%emt 0:00:01]} Bg7 {[%emt 0:00:00]} 3. Nc3 {[%emt 0:00:01]} c6 {[%emt 0:00:20]} 4. h3 {[%emt 0:01:05]} d5 {[%emt 0:01:12]} 5. e5 {[%emt 0:02:37]} Nh6 {[%emt 0:03:48]} 6. Bf4 {[%emt 0:00:01]} f6 {[%emt 0:06:00]} 7. Qd2 {[%emt 0:06:45]} Nf7 {[%emt 0:08:48]} 8. exf6 {[%emt 0:00:00]} Bxf6 {[%emt 0:00:00]} 9. Nf3 {[%emt 0:12:17]} Nd7 {[%emt 0:00:05]} 10. Be2 {[%emt 0:00:00]} O-O {[%emt 0:00:00]} 11. O-O {[%emt 0:00:00]} e5 {[%emt 0:00:01]} 12. dxe5 {[%emt 0:00:00]} Ndxe5 {[%emt 0:00:01]} 13. Nxe5 {[%emt 0:08:18]} Nxe5 {[%emt 0:00:00]} 14. Rad1 {[%emt 0:00:01]} Bf5 {[%emt 0:00:01]} 15. Rfe1 {[%emt 0:19:56]} Qd7 {[%emt 0:00:02]} 16. Bf1 {[%emt 0:00:00]} Rfe8 {[%emt 0:44:09]} 17. Bxe5 {[%emt 0:00:00]} Rxe5 {[%emt 0:00:00]} 18. Rxe5 {[%emt 0:00:00]} Bxe5 {[%emt 0:00:00]} 19. g4 {[%emt 0:00:00]} Be6 {[%emt 0:00:00]} 20. Re1 {[%emt 0:00:01]} Bc7 {[%emt 0:00:01]} 21. Bg2 {[%emt 0:00:00]} Qd6 {[%emt 0:00:01]} 22. Nb5 {[%emt 0:14:13]} Qh2+ {[%emt 0:05:22]} 23. Kf1 {[%emt 0:00:00]} Bf7 {[%emt 0:13:06]} 24. Nxc7 {[%emt 0:00:00]} Qxc7 {[%emt 0:00:01]} 25. c3 {[%emt 0:00:00]} Rd8 {[%emt 0:03:14]} 26. Qg5 {[%emt 0:00:01]} c5 {[%emt 0:12:27]} 27. Re7 {[%emt 0:09:55]} Rd7 {[%emt 0:00:00]} 28. Rxd7 {[%emt 0:00:00]} Qxd7 {[%emt 0:00:00]} 29. Qe5 {[%emt 0:00:00]} b6 {[%emt 0:00:46]} 30. Qb8+ {[%emt 0:00:01]} Kg7 {[%emt 0:00:00]} 31. Qe5+ {[%emt 0:00:01]} Kf8 {[%emt 0:00:00]} 32. Qh8+ {[%emt 0:00:00]} Bg8 {[%emt 0:03:22]} 33. Qf6+ {[%emt 0:00:01]} Bf7 {[%emt 0:00:00]} 34. Qh8+ {[%emt 0:00:00]} Bg8 {[%emt 0:02:53]} 35. Qf6+ {[%emt 0:00:02]} Qf7 {[%emt 0:00:00]} 36. Qd6+ {[%emt 0:00:01]} Qe7 {[%emt 0:00:00]} 37. Qf4+ {[%emt 0:00:00]} Kg7 {[%emt 0:00:00]} 38. Bf3 {[%emt 0:00:01]} Qf6 {[%emt 0:00:00]} 39. Qd2 {[%emt 0:00:02]} g5 {[%emt 0:00:00]} 40. Qd3 {[%emt 0:00:03]} h6 {[%emt 0:00:00]} 41. Kg2 {[%emt 0:00:03]} Qe5 {[%emt 0:00:00]} 42. Qa6 {[%emt 0:04:43]} Qc7 {[%emt 0:00:00]} 43. Qd3 {[%emt 0:00:00]} Qd6 {[%emt 0:00:00]} 44. a3 {[%emt 0:19:11]} Bf7 {[%emt 0:00:00]} 45. Kg1 {[%emt 0:00:01]} a5 {[%emt 0:00:00]} 46. Kg2 {[%emt 0:00:00]} d4 {[%emt 0:00:00]} 47. cxd4 {[%emt 0:00:00]} cxd4 {[%emt 0:00:00]} 48. Be4 {[%emt 0:00:15]} Qe5 {[%emt 0:00:00]} 49. f3 {[%emt 0:00:00]} Qc5 {[%emt 0:00:00]} 50. Bf5 {[%emt 0:00:01]} Bc4 {[%emt 0:00:00]} 51. Qc2 {[%emt 0:00:01]} Bd5 {[%emt 0:00:00]} 52. Qd3 {[%emt 0:00:00]} Bc6 {[%emt 0:00:00]} 53. Be4 {[%emt 0:04:45]} Bb5 {[%emt 0:00:00]} 54. Qd2 {[%emt 0:10:39]} Qc4 {[%emt 0:00:00]} 55. Kg3 {[%emt 0:00:01]} d3 {[%emt 0:00:00]} 56. h4 {[%emt 0:00:00]} Kf6 {[%emt 0:00:00]} 57. hxg5+ {[%emt 0:00:00]} hxg5 {[%emt 0:00:00]} 58. b4 {[%emt 0:01:35]} axb4 {[%emt 0:00:00]} 59. axb4 {[%emt 0:00:00]} Qd4 {[%emt 0:00:00]} 60. Kg2 {[%emt 0:00:00]} Bc4 {[%emt 0:00:00]} 61. Kh2 {[%emt 0:02:27]} Bd5 {[%emt 0:04:36]} 62. Bxd5 {[%emt 0:00:00]} Qxd5 {[%emt 0:00:00]} 63. Kg2 {[%emt 0:00:00]} Qd4 {[%emt 0:00:00]} 64. b5 {[%emt 0:00:00]} Ke6 {[%emt 0:00:03]} 0-1

[Event "2019 National Open"]
[Site "Las Vegas"]
[Date "2019.06.13"]
[Round "1"]
[White "Wu, Logan"]
[Black "Li, Ruifeng"]
[Result "0-1"]
[ECO "B00"]
[WhiteElo "2177"]
[BlackElo "2546"]
[PlyCount "92"]
[EventDate "2019.??.??"]
[TimeControl "5400+30"]
[WhiteClock "0:21:52"]
[BlackClock "0:00:53"]

1. e4 {[%emt 0:00:00]} Nc6 {[%emt 0:00:18]} 2. d4 {[%emt 0:01:09]} d6 {[%emt 0:00:12]} 3. Nc3 {[%emt 0:01:42]} Nf6 {[%emt 0:00:05]} 4. d5 {[%emt 0:03:08]} Nb8 {[%emt 0:00:04]} 5. f4 {[%emt 0:01:12]} c6 {[%emt 0:01:25]} 6. dxc6 {[%emt 0:04:25]} Nxc6 {[%emt 0:00:56]} 7. Nf3 {[%emt 0:02:22]} g6 {[%emt 0:00:58]} 8. e5 {[%emt 0:10:11]} Ng4 {[%emt 0:05:43]} 9. h3 {[%emt 0:02:20]} Nh6 {[%emt 0:00:05]} 10. Be3 {[%emt 0:03:08]} Bg7 {[%emt 0:03:39]} 11. exd6 {[%emt 0:08:03]} Nf5 {[%emt 0:01:12]} 12. Bf2 {[%emt 0:00:53]} Nxd6 {[%emt 0:01:50]} 13. Bd3 {[%emt 0:01:26]} O-O {[%emt 0:08:50]} 14. O-O {[%emt 0:10:07]} Qa5 {[%emt 0:00:30]} 15. Qd2 {[%emt 0:04:04]} Rd8 {[%emt 0:01:18]} 16. Qe3 {[%emt 0:11:12]} Bf5 {[%emt 0:05:35]} 17. Bxf5 {[%emt 0:08:07]} Qxf5 {[%emt 0:10:50]} 18. Qc1 {[%emt 0:11:32]} Nb4 {[%emt 0:03:46]} 19. Ne1 {[%emt 0:04:28]} Bxc3 {[%emt 0:02:42]} 20. bxc3 {[%emt 0:00:04]} Nd5 {[%emt 0:00:02]} 21. Bd4 {[%emt 0:04:34]} Nb5 {[%emt 0:00:03]} 22. Qb2 {[%emt 0:04:09]} Nxf4 {[%emt 0:05:17]} 23. Kh1 {[%emt 0:00:08]} Nxd4 {[%emt 0:03:14]} 24. cxd4 {[%emt 0:00:10]} Qe4 {[%emt 0:00:10]} 25. Nf3 {[%emt 0:01:08]} Qe2 {[%emt 0:05:23]} 26. Nh4 {[%emt 0:01:02]} e5 {[%emt 0:05:32]} 27. dxe5 {[%emt 0:01:43]} Nxh3 {[%emt 0:00:05]} 28. Qxb7 {[%emt 0:00:45]} Ng5 {[%emt 0:02:27]} 29. Nf3 {[%emt 0:00:32]} Ne4 {[%emt 0:03:00]} 30. Kh2 {[%emt 0:00:46]} Qc4 {[%emt 0:03:00]} 31. Rae1 {[%emt 0:00:15]} Nc5 {[%emt 0:00:03]} 32. Qc7 {[%emt 0:00:29]} Rac8 {[%emt 0:04:19]} 33. Qxa7 {[%emt 0:00:39]} Rd7 {[%emt 0:00:02]} 34. Qb6 {[%emt 0:00:19]} Ne6 {[%emt 0:00:03]} 35. Rf2 {[%emt 0:00:41]} Qxa2 {[%emt 0:00:23]} 36. Qb5 {[%emt 0:00:23]} Rdc7 {[%emt 0:00:28]} 37. Ref1 {[%emt 0:00:42]} Rxc2 {[%emt 0:00:34]} 38. Rxc2 {[%emt 0:00:07]} Qxc2 {[%emt 0:00:03]} 39. Qd7 {[%emt 0:00:19]} Rc7 {[%emt 0:02:22]} 40. Qe8+ {[%emt 0:00:36]} Kg7 {[%emt 0:00:02]} 41. Ra1 {[%emt 0:00:52]} Qf5 {[%emt 0:01:20]} 42. Qb8 {[%emt 0:00:29]} Rc2 {[%emt 0:01:05]} 43. Ne1 {[%emt 0:00:29]} Qf4+ {[%emt 0:01:21]} 44. Kg1 {[%emt 0:00:23]} Qf2+ {[%emt 0:00:30]} 45. Kh2 {[%emt 0:00:39]} Rc4 {[%emt 0:00:07]} 46. Nf3 {[%emt 0:00:15]} Rg4 {[%emt 0:00:15]} 0-1

[Event "2019 National Open"]
[Site "Las Vegas"]
[Date "2019.06.13"]
[Round "1"]
[White "Polavaram, Rithik"]
[Black "Shetty, Atulya"]
[Result "1-0"]
[ECO "D10"]
[WhiteElo "2058"]
[BlackElo "2431"]
[PlyCount "47"]
[EventDate "2019.??.??"]
[TimeControl "5400+30"]
[WhiteClock "0:54:29"]
[BlackClock "0:09:44"]

1. d4 {[%emt 0:00:00]} d5 {[%emt 0:00:10]} 2. c4 {[%emt 0:00:02]} c6 {[%emt 0:00:05]} 3. Nc3 {[%emt 0:00:06]} Nf6 {[%emt 0:00:04]} 4. e3 {[%emt 0:00:06]} a6 {[%emt 0:00:16]} 5. Qc2 {[%emt 0:00:04]} g6 {[%emt 0:01:03]} 6. Bd3 {[%emt 0:00:04]} Bg7 {[%emt 0:00:04]} 7. Nf3 {[%emt 0:00:11]} O-O {[%emt 0:00:37]} 8. O-O {[%emt 0:00:06]} dxc4 {[%emt 0:03:25]} 9. Bxc4 {[%emt 0:00:07]} b5 {[%emt 0:01:41]} 10. Bd3 {[%emt 0:02:02]} Nbd7 {[%emt 0:04:03]} 11. Ne4 {[%emt 0:11:07]} Nxe4 {[%emt 0:00:00]} 12. Bxe4 {[%emt 0:00:01]} Bb7 {[%emt 0:01:52]} 13. Bd2 {[%emt 0:08:53]} a5 {[%emt 0:02:44]} 14. b4 {[%emt 0:06:22]} axb4 {[%emt 0:07:25]} 15. Bxb4 {[%emt 0:00:27]} Nf6 {[%emt 0:03:24]} 16. Bd3 {[%emt 0:07:27]} Nd5 {[%emt 0:00:00]} 17. Bc5 {[%emt 0:03:49]} Ra4 {[%emt 0:02:51]} 18. Qd2 {[%emt 0:19:13]} Qc7 {[%emt 0:00:01]} 19. e4 {[%emt 0:13:29]} Nf4 {[%emt 0:09:26]} 20. Bc2 {[%emt 0:11:49]} Rc4 {[%emt 0:00:00]} 21. Rac1 {[%emt 0:06:47]} Rd8 {[%emt 0:05:35]} 22. Bb3 {[%emt 0:05:14]} Rxc1 {[%emt 0:00:00]} 23. Rxc1 {[%emt 0:00:10]} Bc8 {[%emt 0:02:15]} 24. g3 {[%emt 0:00:00]} 1-0